[Event "January 9 Early 2024"]
[Site "https://www.chess.com"]
[Date "2024.01.11"]
[Round "5"]
[White "Rojas Salas, Steven"]
[Black "Hoffmann, Asa"]
[Result "1-0"]
[Board "225"]
[TimeControl "180+1"]
[WhiteFideId "3819434"]
[BlackFideId "2001470"]
[WhiteElo "2642"]
[BlackElo "2380"]
[WhiteTeam "PER"]
[BlackTeam "USA"]
[WhiteClock "0:00:07"]
[BlackClock "0:00:01"]

1. d4 {[%clk 0:03:00]}  Nf6 {[%clk 0:02:56]} 2. c4 {[%clk 0:03:01]}  c5 {[%clk 0:02:55]} 3. d5 {[%clk 0:03:01]}  e5 {[%clk 0:02:55]} 4. Nc3 {[%clk 0:03:01]}  d6 {[%clk 0:02:54]} 5. e4 {[%clk 0:03:01]}  Be7 {[%clk 0:02:54]} 6. Nf3 {[%clk 0:03:01]}  Nbd7 {[%clk 0:02:54]} 7. Bd3 {[%clk 0:03:00]}  Nf8 {[%clk 0:02:53]} 8. Nd2 {[%clk 0:03:00]}  Ng6 {[%clk 0:02:52]} 9. Nf1 {[%clk 0:02:59]}  O-O {[%clk 0:02:48]} 10. Ne3 {[%clk 0:02:55]}  Ne8 {[%clk 0:02:39]} 11. g3 {[%clk 0:02:53]}  Bg5 {[%clk 0:02:37]} 12. h4 {[%clk 0:02:53]}  Bh6 {[%clk 0:02:37]} 13. Be2 {[%clk 0:02:33]}  a6 {[%clk 0:02:35]} 14. a4 {[%clk 0:02:33]}  b6 {[%clk 0:02:34]} 15. Bg4 {[%clk 0:02:32]}  Nf6 {[%clk 0:02:23]} 16. Bxc8 {[%clk 0:02:28]}  Qxc8 {[%clk 0:02:21]} 17. Nf5 {[%clk 0:02:27]}  Bxc1 {[%clk 0:02:15]} 18. Qxc1 {[%clk 0:02:08]}  Nxe4 {[%clk 0:02:03]} 19. Nh6+ {[%clk 0:02:03]}  gxh6 {[%clk 0:02:01]} 20. Nxe4 {[%clk 0:02:04]}  f5 {[%clk 0:01:55]} 21. Nc3 {[%clk 0:02:04]}  Kg7 {[%clk 0:01:50]} 22. a5 {[%clk 0:01:56]}  Rb8 {[%clk 0:01:47]} 23. Kf1 {[%clk 0:01:45]}  e4 {[%clk 0:01:43]} 24. Ne2 {[%clk 0:01:40]}  Ne5 {[%clk 0:01:40]} 25. Nf4 {[%clk 0:01:38]}  Kh8 {[%clk 0:01:39]} 26. Ne6 {[%clk 0:01:30]}  Rf6 {[%clk 0:01:38]} 27. Qc3 {[%clk 0:01:27]}  Rxe6 {[%clk 0:01:35]} 28. dxe6 {[%clk 0:01:27]}  Qxe6 {[%clk 0:01:35]} 29. Kg2 {[%clk 0:01:28]}  f4 {[%clk 0:01:23]} 30. Rae1 {[%clk 0:01:16]}  e3 {[%clk 0:01:07]} 31. fxe3 {[%clk 0:01:00]}  f3+ {[%clk 0:00:58]} 32. Kf2 {[%clk 0:00:49]}  bxa5 {[%clk 0:00:55]} 33. Rd1 {[%clk 0:00:45]}  Rg8 {[%clk 0:00:44]} 34. Rhg1 {[%clk 0:00:32]}  Qh3 {[%clk 0:00:39]} 35. Rd2 {[%clk 0:00:27]}  Rg7 {[%clk 0:00:29]} 36. Ke1 {[%clk 0:00:21]}  Rxg3 {[%clk 0:00:24]} 37. Rf1 {[%clk 0:00:21]}  Qxh4 {[%clk 0:00:22]} 38. Kd1 {[%clk 0:00:22]}  Qe4 {[%clk 0:00:21]} 39. Rxd6 {[%clk 0:00:20]}  Qb1+ {[%clk 0:00:11]} 40. Qc1 {[%clk 0:00:20]}  Qxc1+ {[%clk 0:00:11]} 41. Kxc1 {[%clk 0:00:20]}  Nxc4 {[%clk 0:00:10]} 42. Re6 {[%clk 0:00:13]}  Kg7 {[%clk 0:00:06]} 43. b3 {[%clk 0:00:12]}  Na3 {[%clk 0:00:05]} 44. Rxa6 {[%clk 0:00:08]}  Nb5 {[%clk 0:00:04]} 45. Rxa5 {[%clk 0:00:08]}  Nc3 {[%clk 0:00:04]} 46. Rxc5 {[%clk 0:00:08]}  Ne4 {[%clk 0:00:04]} 47. Re5 {[%clk 0:00:08]}  Ng5 {[%clk 0:00:03]} 48. b4 {[%clk 0:00:08]}  Rg4 {[%clk 0:00:02]} 49. b5 {[%clk 0:00:07]}  Rb4 {[%clk 0:00:01]} 50. Kc2 {[%clk 0:00:07]}  Kf6 {[%clk 0:00:01]} 51. Rc5 {[%clk 0:00:07]} 1-0

[Event "January 9 Early 2024"]
[Site "https://www.chess.com"]
[Date "2024.01.11"]
[Round "5"]
[White "Isajevsky, Anton"]
[Black "Kleibel, Uwe"]
[Result "1-0"]
[Board "228"]
[TimeControl "180+1"]
[WhiteFideId "4142500"]
[BlackFideId "1270982"]
[WhiteElo "2636"]
[BlackElo "2374"]
[WhiteTeam "RUS"]
[BlackTeam "GER"]
[WhiteClock "0:00:01"]
[BlackClock "0:00:02"]

1. c4 {[%clk 0:03:00]}  e6 {[%clk 0:02:59]} 2. Nf3 {[%clk 0:03:00]}  d5 {[%clk 0:03:00]} 3. e3 {[%clk 0:03:01]}  Nf6 {[%clk 0:03:01]} 4. Nc3 {[%clk 0:03:01]}  a6 {[%clk 0:03:00]} 5. b3 {[%clk 0:02:59]}  Bd6 {[%clk 0:02:58]} 6. Bb2 {[%clk 0:02:59]}  O-O {[%clk 0:02:52]} 7. g3 {[%clk 0:02:56]}  b6 {[%clk 0:02:51]} 8. Bg2 {[%clk 0:02:56]}  Bb7 {[%clk 0:02:51]} 9. O-O {[%clk 0:02:56]}  Nbd7 {[%clk 0:02:52]} 10. cxd5 {[%clk 0:02:50]}  exd5 {[%clk 0:02:51]} 11. d4 {[%clk 0:02:44]}  Re8 {[%clk 0:02:49]} 12. Rc1 {[%clk 0:02:43]}  Qe7 {[%clk 0:02:48]} 13. Rc2 {[%clk 0:02:36]}  Ne4 {[%clk 0:02:45]} 14. Ne2 {[%clk 0:02:33]}  f5 {[%clk 0:02:42]} 15. Nf4 {[%clk 0:02:23]}  g5 {[%clk 0:02:00]} 16. Nd3 {[%clk 0:02:19]}  g4 {[%clk 0:02:00]} 17. Nfe5 {[%clk 0:01:59]}  Ndf6 {[%clk 0:01:55]} 18. Nc6 {[%clk 0:01:52]}  Qg7 {[%clk 0:01:43]} 19. a4 {[%clk 0:01:41]}  a5 {[%clk 0:01:33]} 20. Qc1 {[%clk 0:01:38]}  Ba6 {[%clk 0:01:31]} 21. Rd1 {[%clk 0:01:37]}  h5 {[%clk 0:01:25]} 22. Ba3 {[%clk 0:01:26]}  h4 {[%clk 0:01:21]} 23. Bxd6 {[%clk 0:01:16]}  cxd6 {[%clk 0:01:22]} 24. Nf4 {[%clk 0:01:04]}  Qh6 {[%clk 0:01:00]} 25. b4 {[%clk 0:00:33]}  hxg3 {[%clk 0:00:56]} 26. hxg3 {[%clk 0:00:31]}  Kg7 {[%clk 0:00:47]} 27. b5 {[%clk 0:00:31]}  Bb7 {[%clk 0:00:41]} 28. Nd8 {[%clk 0:00:21]}  Raxd8 {[%clk 0:00:29]} 29. Rc7+ {[%clk 0:00:21]}  Rd7 {[%clk 0:00:29]} 30. Rxd7+ {[%clk 0:00:21]}  Nxd7 {[%clk 0:00:30]} 31. Qc7 {[%clk 0:00:22]}  Bc8 {[%clk 0:00:26]} 32. Nxd5 {[%clk 0:00:20]}  Rh8 {[%clk 0:00:25]} 33. Nxb6 {[%clk 0:00:19]}  Nxg3 {[%clk 0:00:11]} 34. fxg3 {[%clk 0:00:18]}  Qxe3+ {[%clk 0:00:11]} 35. Kf1 {[%clk 0:00:15]}  Re8 {[%clk 0:00:11]} 36. Qc2 {[%clk 0:00:05]}  Qxg3 {[%clk 0:00:08]} 37. Nd5 {[%clk 0:00:03]}  Nf6 {[%clk 0:00:04]} 38. Nxf6 {[%clk 0:00:02]}  Kxf6 {[%clk 0:00:05]} 39. Qd3 {[%clk 0:00:02]}  Re3 {[%clk 0:00:05]} 40. Qc4 {[%clk 0:00:01]}  Rf3+ {[%clk 0:00:04]} 41. Kg1 {[%clk 0:00:01]}  Qf2+ {[%clk 0:00:02]} 42. Kh1 {[%clk 0:00:01]} 1-0

[Event "January 9 Early 2024"]
[Site "https://www.chess.com"]
[Date "2024.01.11"]
[Round "5"]
[White "Perez Gormaz, Matias"]
[Black "Shevchuk, Olexandr"]
[Result "0-1"]
[Board "229"]
[TimeControl "180+1"]
[WhiteFideId "3406342"]
[BlackFideId "14113775"]
[WhiteElo "2666"]
[BlackElo "2512"]
[WhiteTeam "CHI"]
[BlackTeam "UKR"]
[WhiteClock "0:00:01"]
[BlackClock "0:00:14"]

1. d4 {[%clk 0:03:00]}  e6 {[%clk 0:02:59]} 2. Bf4 {[%clk 0:03:00]}  c5 {[%clk 0:02:59]} 3. e3 {[%clk 0:03:01]}  Nc6 {[%clk 0:02:59]} 4. c3 {[%clk 0:02:55]}  Qb6 {[%clk 0:02:59]} 5. Qb3 {[%clk 0:02:55]}  Nf6 {[%clk 0:02:57]} 6. Nd2 {[%clk 0:02:53]}  d5 {[%clk 0:02:54]} 7. Ngf3 {[%clk 0:02:51]}  Be7 {[%clk 0:02:52]} 8. h3 {[%clk 0:02:47]}  O-O {[%clk 0:02:48]} 9. Be2 {[%clk 0:02:37]}  Bd7 {[%clk 0:02:42]} 10. O-O {[%clk 0:02:36]}  Rac8 {[%clk 0:02:42]} 11. Rfc1 {[%clk 0:02:25]}  h6 {[%clk 0:02:29]} 12. Rab1 {[%clk 0:01:59]}  Na5 {[%clk 0:02:08]} 13. Qxb6 {[%clk 0:01:44]}  axb6 {[%clk 0:02:08]} 14. Ne5 {[%clk 0:01:40]}  Rfd8 {[%clk 0:01:48]} 15. a3 {[%clk 0:01:32]}  c4 {[%clk 0:01:36]} 16. g4 {[%clk 0:01:31]}  Ba4 {[%clk 0:01:36]} 17. Re1 {[%clk 0:01:19]}  Ne8 {[%clk 0:01:24]} 18. Bg3 {[%clk 0:01:16]}  g6 {[%clk 0:01:18]} 19. e4 {[%clk 0:01:13]}  Bc2 {[%clk 0:01:11]} 20. Rbc1 {[%clk 0:01:13]}  Bxe4 {[%clk 0:01:11]} 21. Nxe4 {[%clk 0:01:06]}  dxe4 {[%clk 0:01:12]} 22. Bf1 {[%clk 0:01:01]}  f5 {[%clk 0:01:13]} 23. Nxg6 {[%clk 0:01:00]}  Bf6 {[%clk 0:01:01]} 24. Rcd1 {[%clk 0:00:58]}  Kf7 {[%clk 0:00:55]} 25. Nf4 {[%clk 0:00:55]}  Nc7 {[%clk 0:00:52]} 26. gxf5 {[%clk 0:00:36]}  exf5 {[%clk 0:00:53]} 27. d5 {[%clk 0:00:37]}  Be5 {[%clk 0:00:38]} 28. Ne6 {[%clk 0:00:29]}  Nxe6 {[%clk 0:00:28]} 29. Bxe5 {[%clk 0:00:30]}  Nc5 {[%clk 0:00:28]} 30. Be2 {[%clk 0:00:28]}  Nd3 {[%clk 0:00:28]} 31. Bxd3 {[%clk 0:00:27]}  cxd3 {[%clk 0:00:26]} 32. d6 {[%clk 0:00:21]}  Nc4 {[%clk 0:00:24]} 33. Bf4 {[%clk 0:00:21]}  Nxd6 {[%clk 0:00:22]} 34. f3 {[%clk 0:00:16]}  Rc4 {[%clk 0:00:19]} 35. Kf2 {[%clk 0:00:12]}  Nb5 {[%clk 0:00:16]} 36. fxe4 {[%clk 0:00:06]}  fxe4 {[%clk 0:00:16]} 37. Bxh6 {[%clk 0:00:06]}  Rd5 {[%clk 0:00:16]} 38. Be3 {[%clk 0:00:06]}  Nd6 {[%clk 0:00:16]} 39. Bxb6 {[%clk 0:00:04]}  Rb5 {[%clk 0:00:16]} 40. Bd4 {[%clk 0:00:03]}  Rxb2+ {[%clk 0:00:17]} 41. Ke3 {[%clk 0:00:04]}  Rh2 {[%clk 0:00:12]} 42. Rf1+ {[%clk 0:00:04]}  Ke7 {[%clk 0:00:12]} 43. Kf4 {[%clk 0:00:01]}  Rxh3 {[%clk 0:00:12]} 44. Ke5 {[%clk 0:00:02]}  Rh5+ {[%clk 0:00:13]} 45. Kf4 {[%clk 0:00:02]}  Rf5+ {[%clk 0:00:13]} 46. Kg4 {[%clk 0:00:03]}  Rxf1 {[%clk 0:00:13]} 47. Rxf1 {[%clk 0:00:04]}  d2 {[%clk 0:00:14]} 48. Rd1 {[%clk 0:00:04]}  e3 {[%clk 0:00:12]} 49. Kf3 {[%clk 0:00:03]}  Nf5 {[%clk 0:00:13]} 50. Bxe3 {[%clk 0:00:03]}  Rxc3 {[%clk 0:00:13]} 51. Rxd2 {[%clk 0:00:01]}  Nxe3 {[%clk 0:00:14]} 52. Kf4 {[%clk 0:00:02]}  Rxa3 {[%clk 0:00:14]} 53. Rc2 {[%clk 0:00:01]}  Nxc2 {[%clk 0:00:14]} 0-1

[Event "January 9 Early 2024"]
[Site "https://www.chess.com"]
[Date "2024.01.11"]
[Round "5"]
[White "Abdulrahman Mohammad, Al Taher"]
[Black "Nowak, Lukasz"]
[Result "1-0"]
[Board "230"]
[TimeControl "180+1"]
[WhiteFideId "9310258"]
[BlackFideId "1166760"]
[WhiteElo "2219"]
[BlackElo "1996"]
[WhiteTeam "UAE"]
[BlackTeam "POL"]
[WhiteClock "0:00:01"]
[BlackClock "0:00:02"]

1. d4 {[%clk 0:03:00]}  d5 {[%clk 0:02:57]} 2. c4 {[%clk 0:03:01]}  e6 {[%clk 0:02:56]} 3. Nc3 {[%clk 0:03:01]}  Be7 {[%clk 0:02:55]} 4. cxd5 {[%clk 0:03:00]}  exd5 {[%clk 0:02:56]} 5. Bf4 {[%clk 0:03:00]}  Nf6 {[%clk 0:02:51]} 6. e3 {[%clk 0:02:59]}  O-O {[%clk 0:02:44]} 7. Bd3 {[%clk 0:02:58]}  c6 {[%clk 0:02:42]} 8. h3 {[%clk 0:02:57]}  Bd6 {[%clk 0:02:29]} 9. Bxd6 {[%clk 0:02:49]}  Qxd6 {[%clk 0:02:30]} 10. Nf3 {[%clk 0:02:50]}  Re8 {[%clk 0:02:16]} 11. Qc2 {[%clk 0:02:49]}  Nbd7 {[%clk 0:02:14]} 12. O-O {[%clk 0:02:48]}  Nf8 {[%clk 0:02:03]} 13. Rab1 {[%clk 0:02:36]}  a5 {[%clk 0:02:01]} 14. a3 {[%clk 0:02:35]}  b5 {[%clk 0:01:45]} 15. Ne2 {[%clk 0:02:01]}  Ba6 {[%clk 0:01:32]} 16. Rbc1 {[%clk 0:01:52]}  Rac8 {[%clk 0:01:31]} 17. Bf5 {[%clk 0:01:40]}  N6d7 {[%clk 0:01:25]} 18. Nf4 {[%clk 0:01:02]}  g6 {[%clk 0:01:24]} 19. Bd3 {[%clk 0:00:57]}  Nb6 {[%clk 0:01:14]} 20. Ne5 {[%clk 0:00:51]}  Nc4 {[%clk 0:01:08]} 21. Bxc4 {[%clk 0:00:42]}  bxc4 {[%clk 0:01:08]} 22. Rfd1 {[%clk 0:00:37]}  f6 {[%clk 0:00:58]} 23. Nf3 {[%clk 0:00:34]}  Rb8 {[%clk 0:00:54]} 24. Ne2 {[%clk 0:00:31]}  Rb7 {[%clk 0:00:51]} 25. Nc3 {[%clk 0:00:30]}  Reb8 {[%clk 0:00:37]} 26. Rb1 {[%clk 0:00:27]}  Nd7 {[%clk 0:00:38]} 27. Rd2 {[%clk 0:00:24]}  Nb6 {[%clk 0:00:32]} 28. Na4 {[%clk 0:00:20]}  Re7 {[%clk 0:00:31]} 29. Nc5 {[%clk 0:00:19]}  Bc8 {[%clk 0:00:30]} 30. Rdd1 {[%clk 0:00:16]}  Bf5 {[%clk 0:00:27]} 31. e4 {[%clk 0:00:12]}  Bxe4 {[%clk 0:00:26]} 32. Nxe4 {[%clk 0:00:12]}  Rxe4 {[%clk 0:00:27]} 33. b3 {[%clk 0:00:09]}  cxb3 {[%clk 0:00:23]} 34. Rxb3 {[%clk 0:00:10]}  Nc4 {[%clk 0:00:22]} 35. Rc3 {[%clk 0:00:07]}  Rb2 {[%clk 0:00:19]} 36. Qa4 {[%clk 0:00:07]}  Ree2 {[%clk 0:00:14]} 37. Rf1 {[%clk 0:00:06]}  Kg7 {[%clk 0:00:12]} 38. Rb3 {[%clk 0:00:05]}  Nd2 {[%clk 0:00:09]} 39. Nxd2 {[%clk 0:00:02]}  Rbxd2 {[%clk 0:00:07]} 40. Rb7+ {[%clk 0:00:01]}  Kh6 {[%clk 0:00:06]} 41. Qxa5 {[%clk 0:00:01]}  Qf4 {[%clk 0:00:04]} 42. Qc3 {[%clk 0:00:01]}  Rxf2 {[%clk 0:00:02]} 43. Qc1 {[%clk 0:00:01]} 1-0

[Event "January 9 Early 2024"]
[Site "https://www.chess.com"]
[Date "2024.01.11"]
[Round "5"]
[White "Yushko, Olga"]
[Black "Barbot, Pierre"]
[Result "0-1"]
[Board "231"]
[TimeControl "180+1"]
[WhiteFideId "14114500"]
[BlackFideId "663727"]
[WhiteElo "2114"]
[BlackElo "2294"]
[WhiteTeam "UKR"]
[BlackTeam "FRA"]
[WhiteClock "0:00:01"]
[BlackClock "0:00:06"]

1. d4 {[%clk 0:02:59]}  Nf6 {[%clk 0:02:56]} 2. c4 {[%clk 0:02:59]}  g6 {[%clk 0:02:56]} 3. Nc3 {[%clk 0:02:58]}  d5 {[%clk 0:02:55]} 4. Nf3 {[%clk 0:02:57]}  Bg7 {[%clk 0:02:54]} 5. Bf4 {[%clk 0:02:56]}  O-O {[%clk 0:02:48]} 6. e3 {[%clk 0:02:56]}  c5 {[%clk 0:02:48]} 7. Be2 {[%clk 0:02:56]}  cxd4 {[%clk 0:02:36]} 8. Nxd4 {[%clk 0:02:52]}  Nc6 {[%clk 0:02:32]} 9. Nxc6 {[%clk 0:02:50]}  bxc6 {[%clk 0:02:32]} 10. O-O {[%clk 0:02:50]}  a5 {[%clk 0:02:18]} 11. Qa4 {[%clk 0:02:46]}  Bd7 {[%clk 0:01:59]} 12. Rfd1 {[%clk 0:02:41]}  Qb6 {[%clk 0:01:54]} 13. Qa3 {[%clk 0:02:31]}  Rfe8 {[%clk 0:01:47]} 14. Na4 {[%clk 0:02:29]}  Qa7 {[%clk 0:01:34]} 15. Nc5 {[%clk 0:02:29]}  Bf5 {[%clk 0:01:13]} 16. Be5 {[%clk 0:02:05]}  Nd7 {[%clk 0:00:49]} 17. Nxd7 {[%clk 0:01:57]}  Qxd7 {[%clk 0:00:50]} 18. Bxg7 {[%clk 0:01:57]}  Kxg7 {[%clk 0:00:51]} 19. cxd5 {[%clk 0:01:45]}  cxd5 {[%clk 0:00:51]} 20. Bf3 {[%clk 0:01:45]}  Be6 {[%clk 0:00:40]} 21. Qd3 {[%clk 0:01:35]}  Rad8 {[%clk 0:00:28]} 22. Qc3+ {[%clk 0:01:31]}  f6 {[%clk 0:00:27]} 23. Qxa5 {[%clk 0:01:31]}  Bf7 {[%clk 0:00:21]} 24. Rd2 {[%clk 0:01:24]}  Ra8 {[%clk 0:00:17]} 25. Qc3 {[%clk 0:01:17]}  Qb5 {[%clk 0:00:15]} 26. Qd3 {[%clk 0:01:11]}  Qa5 {[%clk 0:00:06]} 27. h3 {[%clk 0:01:02]}  Rab8 {[%clk 0:00:07]} 28. b3 {[%clk 0:01:00]}  Red8 {[%clk 0:00:07]} 29. Rad1 {[%clk 0:00:58]}  e5 {[%clk 0:00:04]} 30. Be2 {[%clk 0:00:47]}  Qa7 {[%clk 0:00:02]} 31. Rc1 {[%clk 0:00:46]}  Rd6 {[%clk 0:00:02]} 32. Rdc2 {[%clk 0:00:45]}  Rb7 {[%clk 0:00:03]} 33. Rc5 {[%clk 0:00:42]}  Rbd7 {[%clk 0:00:03]} 34. Qb5 {[%clk 0:00:40]}  d4 {[%clk 0:00:04]} 35. exd4 {[%clk 0:00:39]}  exd4 {[%clk 0:00:04]} 36. Bd3 {[%clk 0:00:35]}  Qxa2 {[%clk 0:00:04]} 37. Rc7 {[%clk 0:00:27]}  Qd2 {[%clk 0:00:03]} 38. R1c2 {[%clk 0:00:21]}  Qe1+ {[%clk 0:00:03]} 39. Kh2 {[%clk 0:00:20]}  Rxc7 {[%clk 0:00:04]} 40. Rxc7 {[%clk 0:00:19]}  Qxf2 {[%clk 0:00:05]} 41. Rc1 {[%clk 0:00:10]}  Qf4+ {[%clk 0:00:05]} 42. Kg1 {[%clk 0:00:04]}  Qxc1+ {[%clk 0:00:06]} 43. Kf2 {[%clk 0:00:05]}  Qf4+ {[%clk 0:00:06]} 44. Ke2 {[%clk 0:00:04]}  Qe3+ {[%clk 0:00:06]} 45. Kd1 {[%clk 0:00:01]}  g5 {[%clk 0:00:06]} 0-1

[Event "January 9 Early 2024"]
[Site "https://www.chess.com"]
[Date "2024.01.11"]
[Round "5"]
[White "Vokhidov, Shamsiddin"]
[Black "Wojtaszek, Radoslaw"]
[Result "0-1"]
[Board "232"]
[TimeControl "180+1"]
[WhiteFideId "14204223"]
[BlackFideId "1118358"]
[WhiteElo "2995"]
[BlackElo "2914"]
[WhiteTeam "UZB"]
[BlackTeam "POL"]
[WhiteClock "0:01:20"]
[BlackClock "0:00:14"]

1. e4 {[%clk 0:03:00]}  c6 {[%clk 0:02:56]} 2. Nf3 {[%clk 0:03:01]}  d5 {[%clk 0:02:55]} 3. Nc3 {[%clk 0:03:02]}  Bg4 {[%clk 0:02:54]} 4. h3 {[%clk 0:03:02]}  Bxf3 {[%clk 0:02:54]} 5. Qxf3 {[%clk 0:03:03]}  e6 {[%clk 0:02:54]} 6. Be2 {[%clk 0:03:02]}  Nf6 {[%clk 0:02:49]} 7. d4 {[%clk 0:02:58]}  dxe4 {[%clk 0:02:47]} 8. Qe3 {[%clk 0:02:59]}  Be7 {[%clk 0:02:46]} 9. Nxe4 {[%clk 0:02:58]}  Nxe4 {[%clk 0:02:45]} 10. Qxe4 {[%clk 0:02:59]}  Nd7 {[%clk 0:02:46]} 11. c3 {[%clk 0:02:59]}  Nf6 {[%clk 0:02:45]} 12. Qf3 {[%clk 0:02:58]}  O-O {[%clk 0:02:41]} 13. O-O {[%clk 0:02:58]}  Qd5 {[%clk 0:02:41]} 14. Qg3 {[%clk 0:02:56]}  Bd6 {[%clk 0:02:37]} 15. Qh4 {[%clk 0:02:55]}  Qe4 {[%clk 0:02:31]} 16. Qxe4 {[%clk 0:02:53]}  Nxe4 {[%clk 0:02:32]} 17. Bf3 {[%clk 0:02:51]}  Nf6 {[%clk 0:02:32]} 18. g3 {[%clk 0:02:52]}  Rfd8 {[%clk 0:02:32]} 19. Re1 {[%clk 0:02:52]}  a5 {[%clk 0:02:32]} 20. Kg2 {[%clk 0:02:53]}  a4 {[%clk 0:02:31]} 21. a3 {[%clk 0:02:53]}  h6 {[%clk 0:02:30]} 22. h4 {[%clk 0:02:51]}  Nd5 {[%clk 0:02:27]} 23. Bd2 {[%clk 0:02:48]}  Be7 {[%clk 0:02:27]} 24. Rad1 {[%clk 0:02:47]}  Bf6 {[%clk 0:02:27]} 25. Bc1 {[%clk 0:02:47]}  Rd7 {[%clk 0:02:27]} 26. Re2 {[%clk 0:02:47]}  Rad8 {[%clk 0:02:22]} 27. h5 {[%clk 0:02:47]}  Kf8 {[%clk 0:02:20]} 28. Rde1 {[%clk 0:02:46]}  Nb6 {[%clk 0:02:20]} 29. Be4 {[%clk 0:02:45]}  Nd5 {[%clk 0:02:20]} 30. f4 {[%clk 0:02:44]}  b5 {[%clk 0:02:04]} 31. g4 {[%clk 0:02:44]}  Bh4 {[%clk 0:02:04]} 32. Rh1 {[%clk 0:02:42]}  Be7 {[%clk 0:02:04]} 33. g5 {[%clk 0:02:41]}  c5 {[%clk 0:02:01]} 34. dxc5 {[%clk 0:02:40]}  Bxc5 {[%clk 0:02:02]} 35. f5 {[%clk 0:02:33]}  exf5 {[%clk 0:01:56]} 36. Bxf5 {[%clk 0:02:34]}  Rd6 {[%clk 0:01:56]} 37. gxh6 {[%clk 0:02:22]}  gxh6 {[%clk 0:01:57]} 38. Rf1 {[%clk 0:02:20]}  Rf6 {[%clk 0:01:24]} 39. Rf3 {[%clk 0:02:19]}  Rdd6 {[%clk 0:01:16]} 40. Re5 {[%clk 0:02:16]}  Bb6 {[%clk 0:01:03]} 41. Be4 {[%clk 0:02:16]}  Rxf3 {[%clk 0:00:58]} 42. Bxf3 {[%clk 0:02:17]}  Nc7 {[%clk 0:00:54]} 43. Bf4 {[%clk 0:02:14]}  Rf6 {[%clk 0:00:49]} 44. Bg3 {[%clk 0:02:04]}  Rd6 {[%clk 0:00:47]} 45. Bf4 {[%clk 0:01:56]}  Rf6 {[%clk 0:00:46]} 46. Bd2 {[%clk 0:01:50]}  Rd6 {[%clk 0:00:46]} 47. Re2 {[%clk 0:01:49]}  Rf6 {[%clk 0:00:36]} 48. Be1 {[%clk 0:01:38]}  Ne6 {[%clk 0:00:35]} 49. Re4 {[%clk 0:01:34]}  Ng5 {[%clk 0:00:33]} 50. Bh4 {[%clk 0:01:07]}  Nxe4 {[%clk 0:00:31]} 51. Bxf6 {[%clk 0:01:08]}  Nxf6 {[%clk 0:00:31]} 52. Bc6 {[%clk 0:01:09]}  Be3 {[%clk 0:00:31]} 53. Bxb5 {[%clk 0:01:09]}  Bc1 {[%clk 0:00:32]} 54. Bxa4 {[%clk 0:01:09]}  Bxb2 {[%clk 0:00:32]} 55. Bd1 {[%clk 0:01:08]}  Bxa3 {[%clk 0:00:29]} 56. Kf3 {[%clk 0:01:08]}  Bd6 {[%clk 0:00:25]} 57. Ke3 {[%clk 0:01:07]}  Ke7 {[%clk 0:00:25]} 58. c4 {[%clk 0:01:08]}  Bc5+ {[%clk 0:00:14]} 59. Kf4 {[%clk 0:01:06]}  Ke6 {[%clk 0:00:14]} 60. Be2 {[%clk 0:01:06]}  Bd6+ {[%clk 0:00:15]} 61. Kf3 {[%clk 0:01:06]}  Ke5 {[%clk 0:00:15]} 62. Ke3 {[%clk 0:01:06]}  Bc5+ {[%clk 0:00:16]} 63. Kd3 {[%clk 0:01:07]}  Kf4 {[%clk 0:00:16]} 64. Bd1 {[%clk 0:01:08]}  Kg5 {[%clk 0:00:16]} 65. Ke2 {[%clk 0:01:07]}  Kxh5 {[%clk 0:00:15]} 66. Kf3 {[%clk 0:01:08]}  Kg5 {[%clk 0:00:15]} 67. Kg2 {[%clk 0:01:09]}  h5 {[%clk 0:00:15]} 68. Kh3 {[%clk 0:01:10]}  h4 {[%clk 0:00:16]} 69. Be2 {[%clk 0:01:11]}  Ne4 {[%clk 0:00:16]} 70. Bf1 {[%clk 0:01:12]}  f5 {[%clk 0:00:16]} 71. Kg2 {[%clk 0:01:12]}  Kf4 {[%clk 0:00:16]} 72. Bd3 {[%clk 0:01:13]}  h3+ {[%clk 0:00:15]} 73. Kh2 {[%clk 0:01:13]}  Ng5 {[%clk 0:00:13]} 74. Bf1 {[%clk 0:01:13]}  Bf2 {[%clk 0:00:13]} 75. Bxh3 {[%clk 0:01:14]}  Nxh3 {[%clk 0:00:13]} 76. Kxh3 {[%clk 0:01:15]}  Bc5 {[%clk 0:00:13]} 77. Kg2 {[%clk 0:01:15]}  Ke4 {[%clk 0:00:13]} 78. Kh3 {[%clk 0:01:16]}  f4 {[%clk 0:00:14]} 79. Kg4 {[%clk 0:01:17]}  f3 {[%clk 0:00:14]} 80. Kg5 {[%clk 0:01:18]}  f2 {[%clk 0:00:14]} 81. Kf6 {[%clk 0:01:19]}  f1=Q+ {[%clk 0:00:14]} 82. Ke6 {[%clk 0:01:20]}  Qf5# {[%clk 0:00:14]} 0-1

[Event "January 9 Early 2024"]
[Site "https://www.chess.com"]
[Date "2024.01.11"]
[Round "5"]
[White "Coca Cubillos, Jesus Alberto"]
[Black "Garbarino, Rodolfo"]
[Result "1-0"]
[Board "233"]
[TimeControl "180+1"]
[WhiteFideId "4462912"]
[BlackFideId "100412"]
[WhiteElo "2576"]
[BlackElo "2367"]
[WhiteTeam "COL"]
[BlackTeam "ARG"]
[WhiteClock "0:00:02"]
[BlackClock "0:00:03"]

1. f4 {[%clk 0:03:00]}  e5 {[%clk 0:02:55]} 2. fxe5 {[%clk 0:03:00]}  d6 {[%clk 0:02:54]} 3. exd6 {[%clk 0:03:01]}  Bxd6 {[%clk 0:02:54]} 4. Nf3 {[%clk 0:03:02]}  Nc6 {[%clk 0:02:54]} 5. d4 {[%clk 0:03:02]}  Bg4 {[%clk 0:02:53]} 6. e3 {[%clk 0:03:02]}  Qe7 {[%clk 0:02:53]} 7. Be2 {[%clk 0:03:03]}  O-O-O {[%clk 0:02:52]} 8. O-O {[%clk 0:03:03]}  Nf6 {[%clk 0:02:52]} 9. c3 {[%clk 0:03:03]}  Ne4 {[%clk 0:02:51]} 10. Qc2 {[%clk 0:03:02]}  f5 {[%clk 0:02:49]} 11. Nbd2 {[%clk 0:03:01]}  g5 {[%clk 0:02:42]} 12. Bd3 {[%clk 0:03:00]}  Rde8 {[%clk 0:02:24]} 13. a3 {[%clk 0:02:56]}  Kb8 {[%clk 0:02:19]} 14. b4 {[%clk 0:02:43]}  h5 {[%clk 0:02:04]} 15. Nc4 {[%clk 0:02:20]}  Bxf3 {[%clk 0:01:51]} 16. gxf3 {[%clk 0:02:15]}  Nf6 {[%clk 0:01:35]} 17. Bxf5 {[%clk 0:02:15]}  g4 {[%clk 0:01:34]} 18. f4 {[%clk 0:02:07]}  h4 {[%clk 0:01:33]} 19. Ne5 {[%clk 0:02:07]}  g3 {[%clk 0:01:25]} 20. h3 {[%clk 0:02:07]}  g2 {[%clk 0:01:12]} 21. Rf2 {[%clk 0:02:05]}  Rhg8 {[%clk 0:01:12]} 22. e4 {[%clk 0:01:55]}  Bxe5 {[%clk 0:00:58]} 23. fxe5 {[%clk 0:01:55]}  Nxe5 {[%clk 0:00:58]} 24. dxe5 {[%clk 0:01:53]}  Qxe5 {[%clk 0:00:58]} 25. Bf4 {[%clk 0:01:53]}  Qe7 {[%clk 0:00:54]} 26. Rxg2 {[%clk 0:01:50]}  Rxg2+ {[%clk 0:00:52]} 27. Kxg2 {[%clk 0:01:51]}  Rg8+ {[%clk 0:00:51]} 28. Kh2 {[%clk 0:01:50]}  Nh5 {[%clk 0:00:50]} 29. Qf2 {[%clk 0:01:44]}  Qd8 {[%clk 0:00:41]} 30. Rg1 {[%clk 0:01:26]}  Rxg1 {[%clk 0:00:32]} 31. Kxg1 {[%clk 0:01:27]}  Qd1+ {[%clk 0:00:30]} 32. Kg2 {[%clk 0:01:20]}  a5 {[%clk 0:00:28]} 33. Be5 {[%clk 0:01:09]}  Qc1 {[%clk 0:00:18]} 34. Bg4 {[%clk 0:01:04]}  Ng3 {[%clk 0:00:15]} 35. Bxg3 {[%clk 0:00:54]}  hxg3 {[%clk 0:00:15]} 36. Qf8+ {[%clk 0:00:51]}  Ka7 {[%clk 0:00:14]} 37. Qc5+ {[%clk 0:00:51]}  Kb8 {[%clk 0:00:15]} 38. Kxg3 {[%clk 0:00:49]}  Qxa3 {[%clk 0:00:10]} 39. Kf4 {[%clk 0:00:43]}  Qc1+ {[%clk 0:00:09]} 40. Kf5 {[%clk 0:00:43]}  a4 {[%clk 0:00:09]} 41. Ke6 {[%clk 0:00:37]}  a3 {[%clk 0:00:09]} 42. Kd7 {[%clk 0:00:15]}  Qd2+ {[%clk 0:00:09]} 43. Ke8 {[%clk 0:00:14]}  a2 {[%clk 0:00:10]} 44. Qf5 {[%clk 0:00:05]}  Ka7 {[%clk 0:00:04]} 45. Qa5+ {[%clk 0:00:04]}  Kb8 {[%clk 0:00:04]} 46. Bf5 {[%clk 0:00:03]}  Qb2 {[%clk 0:00:04]} 47. Kd8 {[%clk 0:00:02]}  a1=Q {[%clk 0:00:03]} 48. Qxc7+ {[%clk 0:00:02]}  Ka8 {[%clk 0:00:03]} 49. Qc8+ {[%clk 0:00:02]} 1-0